Cogmind - Beta 13 X2 @@@ ROGUE MODE // 2024.01.21 @ 19:31:07 // Winter2019/RPGLIKE Player: Terminus Result: Destroyed by H-66 Slayer with Gauss Rifle Performance ------------- Evolutions (4) 2000 Regions Visited (13) 2600 Robots Destroyed (435) 2175 Value Destroyed (15676) 15676 Prototype IDs (23) 460 Alien Tech Used (0) 0 Bonus (9889) 9889 TOTAL SCORE: 32800 Bonus ------- Triggered High Security 500 High Alert Combat Kills 9194 Follower Combat Kills 39 Entered Garrisons 200 Friendly Fire -44 Cogmind --------- Core Integrity 0/900 Matter 300/300 Energy 54/550 System Corruption 28% Temperature Cool (0) Movement Immobile (Siege) Location -6/Factory Parts ------- > --- POWER (2) -------- Antimatter Reactor Antimatter Reactor > --- PROPULSION (4) --- Heavy Treads Heavy Treads (fused) > --- UTILITY (8) ------ Experimental Heat Sink Advanced Signal Interpreter Improved Salvage Targeting Computer Advanced Targeting Computer Core Analyzer Advanced Weapon Cycler Shield Generator Long-range Tractor Beam > --- WEAPON (8) ------- Gauss Rifle Gauss Rifle (fused) Gauss Rifle (fused) Gauss Rifle Gauss Rifle Gauss Rifle Hypervelocity Gauss Rifle Hypervelocity Gauss Rifle > --- INVENTORY (5) ---- Flexi-carbon Leg High-capacity Matter Pod (200) Cooled Plasma Cannon Gauss Rifle Peak State ------------ > --- POWER ------------ Antimatter Reactor Antimatter Reactor > --- PROPULSION ------- Heavy Treads Heavy Treads > --- UTILITY ---------- Experimental Heat Sink Advanced Signal Interpreter Improved Salvage Targeting Computer Advanced Targeting Computer Core Analyzer Advanced Weapon Cycler Shield Generator Long-range Tractor Beam > --- WEAPON ----------- Enhanced Autogun Enhanced Autogun Enhanced Autogun Gauss Rifle Gauss Rifle Gauss Rifle Hypervelocity Gauss Rifle Hypervelocity Gauss Rifle > --- INVENTORY -------- Protomatter High-capacity Matter Pod Cooled Plasma Cannon Gauss Rifle [Rating: 109] Favorites ----------- Power Antimatter Reactor Engine Improved Deuterium Engine Reactor Antimatter Reactor Propulsion Light Treads Treads Light Treads Wheel Wheel Utility Shield Generator Device Shield Generator Storage Medium Matter Pod Processor Core Analyzer Hackware Hacking Suite Weapon Enhanced Autogun Energy Gun EM Pulse Gun Energy Cannon Experimental Thermic Cannon Ballistic Gun Enhanced Autogun Launcher Scatter Rocket Array Slashing Weapon Axe Build | -11 -10 -10 -9 -9 -9 -8 -8 -8 -8 -8 -6 -6 -6 ------- Run | Yrd Mat Min Mat Min Exi Min Mat Sto Gar Rec Fac Was Fac Slots Evolved 18 | 4 2 . 6 . . 1 2 . . 1 . . 2 Power 1 | . . . 1 . . . . . . . . . . Propulsion 3 | 1 . . 1 . . 1 . . . . . . . Utility 7 | 1 1 . 2 . . . 1 . . . . . 2 Weapon 7 | 2 1 . 2 . . . 1 . . 1 . . . Parts Attached 109 | 6 8 . 20 2 8 1 17 8 5 1 2 6 25 Power 14 | 1 . . 4 . . 1 2 . 1 . . 2 3 Engine 9 | 1 . . 4 . . 1 2 . 1 . . . . Core . | . . . . . . . . . . . . . . Reactor 5 | . . . . . . . . . . . . 2 3 Propulsion 13 | 2 . . 2 . . . 2 2 1 . . 2 2 Treads 12 | 2 . . 1 . . . 2 2 1 . . 2 2 Leg . | . . . . . . . . . . . . . . Wheel 1 | . . . 1 . . . . . . . . . . Hover . | . . . . . . . . . . . . . . Flight . | . . . . . . . . . . . . . . Utility 38 | . 5 . 5 2 4 . 9 . 1 . . 2 10 Device 29 | . 4 . 4 1 4 . 7 . . . . 2 7 Storage 1 | . 1 . . . . . . . . . . . . Processor 7 | . . . . 1 . . 2 . 1 . . . 3 Hackware 1 | . . . 1 . . . . . . . . . . Protection . | . . . . . . . . . . . . . . Artifact . | . . . . . . . . . . . . . . Weapon 44 | 3 3 . 9 . 4 . 4 6 2 1 2 . 10 Energy Gun 2 | . . . . . 2 . . . . . . . . Energy Cannon 2 | . . . . . . . . . . . . . 2 Ballistic Gun 38 | 3 3 . 9 . 2 . 4 4 2 1 2 . 8 Ballistic Cannon . | . . . . . . . . . . . . . . Launcher 1 | . . . . . . . . 1 . . . . . Special Weapon . | . . . . . . . . . . . . . . Impact Weapon . | . . . . . . . . . . . . . . Slashing Weapon 1 | . . . . . . . . 1 . . . . . Piercing Weapon . | . . . . . . . . . . . . . . Special Melee Weapon . | . . . . . . . . . . . . . . Unidentified Prototypes 9 | . . . 2 . 2 . . 1 . . . . 4 Corrupted Parts 1 | . . . . . 1 . . . . . . . . System Corruption 1 | . . . . . 1 . . . . . . . . Parts Lost . | . . . . . . . . . . . . . . Power . | . . . . . . . . . . . . . . Propulsion . | . . . . . . . . . . . . . . Utility . | . . . . . . . . . . . . . . Weapon . | . . . . . . . . . . . . . . Highest Loss Streak . | . . . . . . . . . . . . . . To Critical Strikes . | . . . . . . . . . . . . . . Average Slot Usage (%) 96 | . 97 100 98 100 99 96 98 99 99 99 100 93 89 Engine 7 | . 10 10 11 12 12 11 10 10 9 10 10 5 . Reactor 2 | . . . . . . . . . . . . 4 9 Treads 15 | . 22 20 13 12 12 11 21 20 20 20 20 13 9 Device 18 | . 15 20 21 19 24 23 21 21 17 15 15 15 15 Storage 2 | . 9 10 6 4 . . . . . . . . . Processor 9 | . . . . 4 6 5 10 10 12 15 15 15 18 Ballistic Gun 36 | . 38 40 38 37 36 35 32 35 36 38 40 40 37 Naked Turns . | . . . . . . . . . . . . . . Heaviest Build 72 | 9 15 15 38 38 42 39 45 46 48 50 56 68 72 Greatest Support 140 | 40 40 40 43 43 43 43 83 83 83 83 83 140 140 Greatest Overweight (x) 3 | . . . 3 3 . 3 . 1 . . . . . Average Overweight (x) . | . . . . . . 1 . . . . . . . Largest Inventory Capacity 5 | 1 1 2 4 5 5 5 5 5 5 5 5 5 5 Average Capacity 4 | . 1 1 3 4 5 5 5 5 5 5 5 5 5 Most Carried 5 | . 1 2 4 5 5 5 5 5 5 5 5 5 5 Average Carried 4 | . . 1 3 4 4 5 4 4 5 5 5 5 4 Final Capacity 5 | 1 1 2 4 5 5 5 5 5 5 5 5 5 5 Final Carried 5 | . 1 2 4 5 5 5 4 5 5 5 5 5 4 Class Distribution -------------------- 82% | Scavenger-Executioner 15% | Gunner Dominant Class ---------------- Gunner | -10/Materials Gunner | -10/Mines Scavenger-Executioner | -9/Materials Scavenger-Executioner | -9/Mines Scavenger-Executioner | -9/Exiles Scavenger-Executioner | -8/Mines Scavenger-Executioner | -8/Materials Scavenger-Executioner | -8/Storage Scavenger-Executioner | -8/Garrison Scavenger-Executioner | -8/Recycling Scavenger-Executioner | -6/Factory Scavenger-Executioner | -6/Waste Scavenger-Executioner | -6/Factory Resources | -11 -10 -10 -9 -9 -9 -8 -8 -8 -8 -8 -6 -6 -6 ----------- Run | Yrd Mat Min Mat Min Exi Min Mat Sto Gar Rec Fac Was Fac Matter Collected 16610 | 226 519 64 2218 102 678 273 2185 1650 1256 190 . 618 6631 Remotely 15123 | . 115 64 2218 102 460 273 2185 1643 1237 190 . 618 6018 Salvage Created 20903 | . 471 19 2589 21 200 306 3162 2134 1805 156 . 1670 8370 Parts 1207 | . 65 10 185 9 4 30 185 157 109 15 . 38 400 Haulers Intercepted 22 | . 1 . 6 . . . 6 6 . . . . 3 Recyclers Shooed 8 | . . . 1 1 . . 1 1 . . . . 4 Parts Field Recycled . | . . . . . . . . . . . . . . Retrieved Matter . | . . . . . . . . . . . . . . Parts Self-Destructed . | . . . . . . . . . . . . . . Prevented . | . . . . . . . . . . . . . . Kills | -11 -10 -10 -9 -9 -9 -8 -8 -8 -8 -8 -6 -6 -6 ------- Run | Yrd Mat Min Mat Min Exi Min Mat Sto Gar Rec Fac Was Fac Combat Hostiles Destroyed 397 | . 20 5 57 2 4 13 56 43 37 4 . 6 150 Guns 395 | . 20 5 57 2 4 13 56 43 37 4 . 6 148 AOE 2 | . . . . . . . . . . . . . 2 Classes Destroyed 24 | . 8 . 7 . 1 . 2 1 2 . . 1 2 Worker 17 | . 1 . 3 . . 1 3 5 . . . . 4 Builder 14 | . . . 3 . . . 4 3 . 1 . . 3 Tunneler 2 | . 1 . . . . . 1 . . . . . . Hauler 22 | . 1 . 6 . . . 6 6 . . . . 3 Recycler 9 | . 1 . 3 . . 2 1 . . . . . 2 Mechanic 6 | . . . 1 . . . 2 . . . . . 3 Operator 11 | . . . 3 . . . 2 2 . . . . 4 Watcher 20 | . 2 . 4 . . . 5 2 1 . . . 6 Swarmer 59 | . 7 3 10 . . 13 6 5 4 . . . 11 Cutter 3 | . . . . . . . . . 3 . . . . Saboteur 9 | . . . . . . . . . . . . . 9 Grunt 193 | . 10 2 34 . . . 36 23 15 . . . 73 Brawler 18 | . . . 1 . . . 4 . . . . . 13 Duelist 15 | . . . 1 . . . 2 3 2 . . . 7 Protector 9 | . . . 2 . . . 1 1 . . . . 5 Sentry 44 | . . . 9 2 . . 5 10 9 4 . . 5 Specialist 3 | . . . . . . . 1 . 1 . . . 1 Hunter 16 | . . . . . . . . 1 1 . . . 14 Programmer 11 | . . . . . . . . . 2 . . . 9 Heavy 3 | . . . . . . . 1 . . . . . 2 Behemoth 1 | . . . . . . . . . . . . . 1 Compactor 6 | . . . . . . . . . . . . 6 . Subdweller 3 | . 3 . . . . . . . . . . . . Assembled 3 | . . . . . 3 . . . . . . . . Best Kill Streak 16 | . 6 3 8 2 3 6 9 11 7 1 . 2 16 Combat Bots Only 16 | . 5 3 7 2 3 4 8 9 7 1 . 2 16 Max Kills in Single Turn 5 | . 2 1 3 1 1 3 2 3 2 1 . 1 5 Gunslinging 2 | . 1 . 2 . . 2 1 2 1 . . . 2 Exploded 2 | . . . . . . . . . . . . . 2 Melee . | . . . . . . . . . . . . . . Uniques/NPCs Destroyed 1 | . . . . . 1 . . . . . . . . 8R-AWN (-9/Exiles) Combat | -11 -10 -10 -9 -9 -9 -8 -8 -8 -8 -8 -6 -6 -6 -------- Run | Yrd Mat Min Mat Min Exi Min Mat Sto Gar Rec Fac Was Fac Hostile Shots Fired 867 | . 70 20 158 6 54 19 77 78 52 4 . . 329 Missed 241 | . 23 6 58 1 9 4 24 23 24 . . . 69 Damage Taken 7600 | . 516 143 1201 75 593 86 699 621 315 43 . . 3308 Core 5965 | . 409 109 955 62 472 62 546 480 248 33 . . 2589 Absorbed by Shields 2050 | . . . . . 225 37 227 236 122 17 . . 1186 Reduced by Siege Mode 86 | . . . . . . . . . . . . . 86 Redirected to Core 5445 | . 344 109 823 49 399 57 512 445 218 33 . . 2456 Ignored by Resistances 46 | . . . . . . . . . . . . . 46 Core Remaining (%) 95 | 100 . 98 . . . 82 . . . 100 . . . Volleys Fired 679 | . 57 8 135 3 32 14 100 70 48 7 . 15 190 Largest 8 | . 4 4 6 6 6 6 6 7 7 8 . 8 8 Hottest 234 | . 80 80 138 138 138 138 140 167 182 205 . 225 234 Shots Fired 4092 | . 181 32 728 20 132 83 599 453 314 39 . 117 1394 Gun 4092 | . 181 32 728 20 132 83 599 453 314 39 . 117 1394 Cannon . | . . . . . . . . . . . . . . Launcher . | . . . . . . . . . . . . . . Special . | . . . . . . . . . . . . . . Kinetic 4082 | . 181 32 728 20 122 83 599 453 314 39 . 117 1394 Thermal . | . . . . . . . . . . . . . . Explosive . | . . . . . . . . . . . . . . Electromagnetic 10 | . . . . . 10 . . . . . . . . Robot Hit Streak 49 | . 8 10 19 8 37 11 49 35 29 8 . 28 48 Robot Miss Streak 7 | . 4 1 7 1 2 2 4 3 3 1 . 1 4 Penetration Max 3 | . . . . . . . . . 1 . . . 3 Secondary Targets 143 | . 4 2 24 . 1 7 18 13 13 . . . 61 Max Gunslinging Chain 3 | . 1 1 2 . 1 2 2 2 2 . . . 3 Shots Hit Robots 2507 | . 106 19 361 10 103 30 371 266 158 15 . 88 980 Core Hits 1112 | . 48 10 130 6 17 17 153 108 78 7 . 22 516 Critical Kills 56 | . 1 . 1 . . 1 . 2 1 1 . 3 46 Critical Parts Destroyed 69 | . 1 . 1 . 1 1 3 3 2 . . 1 56 Critical Strikes 133 | . 2 . 2 . 1 2 3 6 3 1 . 10 103 Destroy 133 | . 2 . 2 . 1 2 3 6 3 1 . 10 103 Melee Attacks 3 | . . . . . . . . 3 . . . . . Impact . | . . . . . . . . . . . . . . Slashing 3 | . . . . . . . . 3 . . . . . Piercing . | . . . . . . . . . . . . . . Sneak Attacks . | . . . . . . . . . . . . . . Combat Hostiles . | . . . . . . . . . . . . . . Follow-up Attacks . | . . . . . . . . . . . . . . Damage Inflicted 42131 | 1 1098 219 5238 200 1469 506 6167 4684 2883 315 . 1392 17959 Guns 41369 | . 1096 218 5022 175 1469 496 6072 4673 2883 296 . 1392 17577 Cannons . | . . . . . . . . . . . . . . Explosions 593 | . . . 197 . . . 80 . . . . . 316 Melee . | . . . . . . . . . . . . . . Ramming 169 | 1 2 1 19 25 . 10 15 11 . 19 . . 66 Kinetic 41361 | . 1096 218 5022 175 1461 496 6072 4673 2883 296 . 1392 17577 Thermal 396 | . . . . . . . 80 . . . . . 316 Explosive 197 | . . . 197 . . . . . . . . . . Electromagnetic 8 | . . . . . 8 . . . . . . . . Impact . | . . . . . . . . . . . . . . Slashing . | . . . . . . . . . . . . . . Piercing . | . . . . . . . . . . . . . . Highest Corruption 28 | . . . 2 2 3 3 4 4 4 5 . 24 28 Average Corruption 11 | . . . 2 2 2 3 3 4 4 4 . 17 24 Corruption Purged . | . . . . . . . . . . . . . . Corruption Blocked . | . . . . . . . . . . . . . . Effects 515 | . . . 35 12 12 12 23 35 29 17 . 15 325 Message Errors 101 | . . . 5 2 2 4 6 12 5 4 . 1 60 Matter Fused 104 | . . . 8 3 2 3 4 5 6 5 . 6 62 Heat Flow Errors 53 | . . . 2 2 1 2 6 3 6 2 . 1 28 Energy Discharges 52 | . . . 5 1 1 1 1 . 4 2 . . 37 Parts Rejected 1 | . . . . . . . . . . . . . 1 Parts Fused 6 | . . . . . . . . 1 . 1 . . 4 Data Loss (minor) 51 | . . . 7 2 2 1 2 4 1 1 . 1 30 Data Loss (major) 24 | . . . 1 . 1 . 1 3 3 2 . 1 12 Misfires 22 | . . . 3 2 1 . 1 2 1 . . 1 11 Alerts 11 | . . . 1 . 1 . . 2 2 . . . 5 Weapon Failures 90 | . . . 3 . 1 1 2 3 1 . . 4 75 Overload Shots . | . . . . . . . . . . . . . . Overflow Damage 81 | . . . 29 . . . 40 . . . . . 12 Projectiles . | . . . . . . . . . . . . . . Explosions 81 | . . . 29 . . . 40 . . . . . 12 Melee . | . . . . . . . . . . . . . . Knockbacks 1 | . . . . 1 . . . . . . . . . Impact 1 | . . . . 1 . . . . . . . . . Kinetic . | . . . . . . . . . . . . . . Secondary . | . . . . . . . . . . . . . . Self-Inflicted Damage 103 | . . . . 4 . . 37 . . . . . 62 Shots 2 | . . . . . . . 1 . . . . . 1 Rammed 21 | 1 . 1 4 2 . 2 2 2 . . . . 7 Targets Rammed 26 | 1 1 1 4 2 . 2 4 2 . 1 . . 8 Kicked . | . . . . . . . . . . . . . . Crushed 5 | . 1 . . . . . 2 . . 1 . . 1 Highest Temperature 438 | . 26 11 171 133 208 225 258 162 210 198 . 167 438 Average Temperature 58 | . 7 6 44 37 34 106 75 32 55 56 . 64 74 Received Heat Transfer 2173 | . 90 36 543 18 . . 274 268 85 12 . . 847 Effects 3 | . . . . . . . . . . . . . 3 Energy Bleed 2 | . . . . . . . . . . . . . 2 Short Circuit 1 | . . . . . . . . . . . . . 1 Siege Activations 32 | . . . . . . . . . . . . 3 29 Total Turns 1970 | . . . . . . . . . . . . 14 1956 Longest Duration 776 | . . . . . . . . . . . . 7 776 Robots Corrupted . | . . . . . . . . . . . . . . Combat Hostiles . | . . . . . . . . . . . . . . Parts Fried . | . . . . . . . . . . . . . . Impact Corruptions 1 | . . . . . . . . . . . . . 1 Robots Melted . | . . . . . . . . . . . . . . Combat Hostiles . | . . . . . . . . . . . . . . Parts Melted 2 | . 1 . . . . . . . . . . . 1 Heat Transferred 250 | . . . . . . . 50 . . . . . 200 Parts Sabotaged 4 | . . . . . . . . . . . . . 4 Parts Stolen . | . . . . . . . . . . . . . . Parts Stripped . | . . . . . . . . . . . . . . Power Chain Reactions . | . . . . . . . . . . . . . . Missiles Intercepted . | . . . . . . . . . . . . . . Alert | -11 -10 -10 -9 -9 -9 -8 -8 -8 -8 -8 -6 -6 -6 ------- Run | Yrd Mat Min Mat Min Exi Min Mat Sto Gar Rec Fac Was Fac Peak Influence 3362 | . 243 121 1478 661 . 340 1247 1531 2188 1146 781 288 3362 Initial 984 | . . 71 . 576 . . 5 526 922 984 781 273 201 Average 793 | . 97 60 758 522 . 149 730 1114 1595 1058 781 284 1011 Maximum Alert Level 5 | . 1 . 4 2 . 1 4 4 5 4 3 1 5 Low Security (%) 20 | 100 97 100 4 . . 83 9 . . . . . 7 Level 1 13 | . 2 . 19 15 . 16 18 . . . . 100 15 Level 2 16 | . . . 24 84 . . 5 14 . . . . 20 Level 3 20 | . . . 29 . . . 56 30 13 66 100 . 9 Level 4 22 | . . . 21 . . . 9 55 40 33 . . 32 Level 5 3 | . . . . . . . . . 45 . . . 1 High Security 3 | . . . . . . . . . . . . . 12 Max Security . | . . . . . . . . . . . . . . Sterilizations 3 | . . . 1 . . . 1 . . . . . 1 Squads Dispatched 87 | . 7 . 11 . . . 13 7 . . . . 49 Investigation 27 | . 5 . 5 . . . 4 4 . . . . 9 Extermination 6 | . . . . . . . . . . . . . 6 Reinforcement 15 | . 2 . 3 . . . 5 1 . . . . 4 Assault 38 | . . . 3 . . . 4 2 . . . . 29 Garrison 1 | . . . . . . . . . . . . . 1 Intercept . | . . . . . . . . . . . . . . Searches Triggered . | . . . . . . . . . . . . . . Construction Impeded 2 | . . . . . . . 1 . . . . . 1 Haulers Reinforced . | . . . . . . . . . . . . . . Active Scanning Responses . | . . . . . . . . . . . . . . Cargo Convoy Interrupts 1 | . . . . . . . . . . . . . 1 Stealth | -11 -10 -10 -9 -9 -9 -8 -8 -8 -8 -8 -6 -6 -6 --------- Run | Yrd Mat Min Mat Min Exi Min Mat Sto Gar Rec Fac Was Fac Distress Signals 7 | . 1 . 2 . . . 2 . . . . . 2 Communications Jammed . | . . . . . . . . . . . . . . Distress Signals . | . . . . . . . . . . . . . . Times Spotted 505 | . 28 5 69 6 10 13 69 46 36 2 . 5 216 Peak Tracking Total 22 | . 5 3 6 2 9 4 5 7 9 1 . 2 22 Tactical Retreats 24 | . . . . 3 1 . 4 . 2 . . . 14 Traps | -11 -10 -10 -9 -9 -9 -8 -8 -8 -8 -8 -6 -6 -6 ------- Run | Yrd Mat Min Mat Min Exi Min Mat Sto Gar Rec Fac Was Fac Traps Triggered 18 | . 1 . 2 . . . 6 2 3 . 1 . 3 Indirectly . | . . . . . . . . . . . . . . Trap Hack Attempts . | . . . . . . . . . . . . . . Triggered . | . . . . . . . . . . . . . . Disarmed 4 | . . . . . . . . 4 . . . . . Reprogrammed . | . . . . . . . . . . . . . . Reused . | . . . . . . . . . . . . . . Traps Extracted . | . . . . . . . . . . . . . . Installed . | . . . . . . . . . . . . . . Triggered 1 | . . . . . . . . . . . . . 1 Machines | -11 -10 -10 -9 -9 -9 -8 -8 -8 -8 -8 -6 -6 -6 ---------- Run | Yrd Mat Min Mat Min Exi Min Mat Sto Gar Rec Fac Was Fac Machines Disabled 65 | . . . 19 . 5 2 18 2 2 2 . . 15 Max in Single Turn 5 | . . . 2 . 1 1 4 1 1 1 . . 5 Garrison Access 2 | . . . . . . . 1 . . . . . 1 Garrison Relay 2 | . . . . . . . . . 2 . . . . Machines Repaired . | . . . . . . . . . . . . . . Machines Dismantled . | . . . . . . . . . . . . . . Machines Sabotaged . | . . . . . . . . . . . . . . Overloaded Fab Kills . | . . . . . . . . . . . . . . Hacking | -11 -10 -10 -9 -9 -9 -8 -8 -8 -8 -8 -6 -6 -6 --------- Run | Yrd Mat Min Mat Min Exi Min Mat Sto Gar Rec Fac Was Fac Machines Accessed 64 | . 7 . 12 . 1 . 8 12 3 9 . . 12 Terminals 46 | . 5 . 10 . . . 6 10 3 6 . . 6 Fabricators 2 | . . . . . . . . . . . . . 2 Repair Stations 2 | . . . . . . . . . . . . . 2 Recycling Units 9 | . 2 . 2 . . . 1 1 . 3 . . . Scanalyzers 2 | . . . . . . . 1 . . . . . 1 Garrison Access 2 | . . . . . . . . 1 . . . . 1 Total Hacks 212 | . 19 . 63 . 4 . 26 27 6 27 . . 40 Successful 105 | . 9 . 35 . 4 . 16 16 2 10 . . 13 Failed 106 | . 10 . 27 . . . 10 11 4 17 . . 27 Catastrophic 12 | . . . . . . . 1 1 1 2 . . 7 Database Lockouts 1 | . . . 1 . . . . . . . . . . Manual 130 | . 19 . 48 . . . 20 18 1 11 . . 13 Terminals 174 | . 17 . 59 . . . 23 25 6 24 . . 20 Fabricators 8 | . . . . . . . . . . . . . 8 Repair Stations 6 | . . . . . . . . . . . . . 6 Recycling Units 11 | . 2 . 4 . . . 1 1 . 3 . . . Scanalyzers 4 | . . . . . . . 2 . . . . . 2 Garrison Access 5 | . . . . . . . . 1 . . . . 4 Terminal Hacks 63 | . 4 . 26 . 4 . 9 9 2 6 . . 3 Record 4 | . . . . . 4 . . . . . . . . Part Schematic 3 | . . . . . . . . . . 3 . . . Robot Analysis 11 | . 3 . 5 . . . 2 . . 1 . . . Prototype ID Bank 9 | . . . 5 . . . 3 . . 1 . . . Open Door 2 | . . . . . . . . 2 . . . . . Terminal Index 3 | . . . 2 . . . . 1 . . . . . Fabricator Index 1 | . . . . . . . . . . . . . 1 Alert Level 12 | . . . 9 . . . 1 1 . 1 . . . Unreport Threat 4 | . . . . . . . 2 . . . . . 2 Disarm Traps 1 | . . . . . . . . 1 . . . . . Hauler Manifests 2 | . . . 2 . . . . . . . . . . Zone Layout 9 | . 1 . 3 . . . 1 4 . . . . . Patrol Navigation 1 | . . . . . . . . . 1 . . . . Security Stations 1 | . . . . . . . . . 1 . . . . Fabricator Hacks 4 | . . . . . . . . . . . . . 4 Load Schematic 2 | . . . . . . . . . . . . . 2 Build 2 | . . . . . . . . . . . . . 2 Repair Station Hacks 1 | . . . . . . . . . . . . . 1 Scan Component 1 | . . . . . . . . . . . . . 1 Recycling Unit Hacks . | . . . . . . . . . . . . . . Scanalyzer 4 | . . . . . . . 2 . . . . . 2 Insert Component 2 | . . . . . . . 1 . . . . . 1 Analyze 2 | . . . . . . . 1 . . . . . 1 Garrison Access Hacks 1 | . . . . . . . . 1 . . . . . Unlock Access 1 | . . . . . . . . 1 . . . . . Unauthorized Hacks 32 | . 5 . 9 . . . 5 6 . 4 . . 3 Terminals 23 | . 3 . 8 . . . 4 5 . 1 . . 2 Assimilate 1 | . . . . . . . . . . . . . 1 Botnet 22 | . 3 . 8 . . . 4 5 . 1 . . 1 Fabricators 1 | . . . . . . . . . . . . . 1 Haulers 1 | . . . . . . . . . . . . . 1 Repair Stations . | . . . . . . . . . . . . . . Recycling Units 8 | . 2 . 1 . . . 1 1 . 3 . . . Tunnel 8 | . 2 . 1 . . . 1 1 . 3 . . . Scanalyzers . | . . . . . . . . . . . . . . Garrison Access . | . . . . . . . . . . . . . . Data Cores Recovered 4 | . . . . . . . . 2 . . . . 2 Used 1 | . . . . . . . . 1 . . . . . Hacking Detections 51 | . 5 . 11 . . . 6 8 3 6 . . 12 Full Trace Events 29 | . 2 . 7 . . . 2 3 2 4 . . 9 Feedback Events 2 | . . . . . . . . . . 1 . . 1 Corruption 2 | . . . . . . . . . . 1 . . 1 Feedback Blocked . | . . . . . . . . . . . . . . Robot Schematics Acquired . | . . . . . . . . . . . . . . Robots Built . | . . . . . . . . . . . . . . Authchips . | . . . . . . . . . . . . . . Time . | . . . . . . . . . . . . . . Total Robot Build Rating . | . . . . . . . . . . . . . . Part Schematics Acquired 5 | . . . . . . . 1 . . 3 . . 1 Parts Built 4 | . . . . . . . . . . . . . 4 Authchips . | . . . . . . . . . . . . . . Time 170 | . . . . . . . . . . . . . 170 Total Part Build Rating 24 | . . . . . . . . . . . . . 24 Parts Repaired . | . . . . . . . . . . . . . . Time . | . . . . . . . . . . . . . . Parts Recycled . | . . . . . . . . . . . . . . Recycled Matter . | . . . . . . . . . . . . . . Retrieved Matter . | . . . . . . . . . . . . . . Retrieved Components . | . . . . . . . . . . . . . . Parts Scanalyzed 2 | . . . . . . . 1 . . . . . 1 Part Schematics Acquired 2 | . . . . . . . 1 . . . . . 1 Parts Damaged . | . . . . . . . . . . . . . . Bothacking | -11 -10 -10 -9 -9 -9 -8 -8 -8 -8 -8 -6 -6 -6 ------------ Run | Yrd Mat Min Mat Min Exi Min Mat Sto Gar Rec Fac Was Fac Used RIF Installer . | . . . . . . . . . . . . . . Robots Hacked . | . . . . . . . . . . . . . . Non-combat . | . . . . . . . . . . . . . . Combat . | . . . . . . . . . . . . . . Robot Hacks Applied . | . . . . . . . . . . . . . . Relay Couplers Released 4 | . . . . . . . . . 3 . . . 1 Machine Destruction 4 | . . . . . . . . . 3 . . . 1 Fabnet Peak Effective % . | . . . . . . . . . . . . . . Robots Rewired . | . . . . . . . . . . . . . . Allies Hacked . | . . . . . . . . . . . . . . Hacks Repelled . | . . . . . . . . . . . . . . Allies | -11 -10 -10 -9 -9 -9 -8 -8 -8 -8 -8 -6 -6 -6 -------- Run | Yrd Mat Min Mat Min Exi Min Mat Sto Gar Rec Fac Was Fac Total Allies 4 | . . . . 3 . . . . . . . . 1 Largest Group 3 | . . . . 3 3 . . . . . . . 1 Highest-Rated Group 40 | . . . . 40 40 . . . . . . . 10 Highest-Rated Ally 16 | . . . . 16 16 . . . . . . . 10 Total Orders 1 | . . . . . 1 . . . . . . . . STAY 1 | . . . . . 1 . . . . . . . . Ally Attacks 44 | . . . . 18 26 . . . . . . . . Total Damage 334 | . . . . 167 167 . . . . . . . . Kills 5 | . . . . 1 4 . . . . . . . . Allies Corrupted . | . . . . . . . . . . . . . . Allies Melted . | . . . . . . . . . . . . . . Intel | -11 -10 -10 -9 -9 -9 -8 -8 -8 -8 -8 -6 -6 -6 ------- Run | Yrd Mat Min Mat Min Exi Min Mat Sto Gar Rec Fac Was Fac Robot Analysis Total 11 | . 3 . 5 . . . 2 . . 1 . . . Derelict Logs Recovered 5 | . . 2 . 3 . . . . . . . . . Drone Launches . | . . . . . . . . . . . . . . Drone Recoveries . | . . . . . . . . . . . . . . Exploration | -11 -10 -10 -9 -9 -9 -8 -8 -8 -8 -8 -6 -6 -6 ------------- Run | Yrd Mat Min Mat Min Exi Min Mat Sto Gar Rec Fac Was Fac Turns Passed 18573 | 59 1338 864 2558 946 703 858 2109 1221 1271 733 121 296 5496 Spaces Moved 8288 | 44 628 517 1193 546 262 528 915 538 651 437 72 129 1828 Core 20 | 20 . . . . . . . . . . . . . Treads 7762 | 24 628 517 940 485 262 336 915 538 651 437 72 129 1828 Legs . | . . . . . . . . . . . . . . Wheels 506 | . . . 253 61 . 192 . . . . . . . Hover . | . . . . . . . . . . . . . . Flight . | . . . . . . . . . . . . . . Fastest Speed 50 | 50 160 160 125 125 160 125 160 160 160 160 160 160 160 Average Speed 157 | 110 160 160 152 156 160 147 160 160 160 160 160 160 160 Slowest Speed 240 | 160 160 160 160 160 160 160 160 240 160 160 160 160 160 Overloaded Moves . | . . . . . . . . . . . . . . Propulsion Burnouts . | . . . . . . . . . . . . . . Robots Hopped . | . . . . . . . . . . . . . . Cave-ins Triggered . | . . . . . . . . . . . . . . Exploration Rate (%) 72 | 3 93 97 93 97 53 99 69 90 84 99 5 87 50 Regions Visited 13 Branch Regions 6 Pre-discovered Areas 11 | . 2 . 1 2 1 . 1 1 . 3 . . . Known Exits Taken 4 | . . . 1 . . . 1 1 . 1 . . . Unknown Exits Taken 6 | 1 1 1 . 1 1 1 . . . . . . . Scrap Searched 4 | . . 2 . 1 . 1 . . . . . . . Spaces Dug 4 | . . . . . . . . 3 . . . . 1 Terrain Destroyed 215 | . . . 84 . . . 44 3 3 . . 2 79 Melee 3 | . . . . . . . . 3 . . . . . Projectile 13 | . . . . . . . . . 3 . . 2 8 AOE 177 | . . . 84 . . . 44 . . . . . 49 Terrain Rammed . | . . . . . . . . . . . . . . Walls Destroyed . | . . . . . . . . . . . . . . Machines Disabled . | . . . . . . . . . . . . . . Actions | -11 -10 -10 -9 -9 -9 -8 -8 -8 -8 -8 -6 -6 -6 --------- Run | Yrd Mat Min Mat Min Exi Min Mat Sto Gar Rec Fac Was Fac Total 12362 | 51 853 537 1579 632 478 568 1310 747 795 459 79 194 4080 Wait 2775 | 1 124 4 142 64 156 15 191 80 67 9 3 33 1886 Move 8276 | 43 627 516 1192 545 261 527 914 537 650 436 72 128 1828 Hop . | . . . . . . . . . . . . . . Pick Up 34 | . 1 1 4 2 3 . 7 4 1 . . 1 10 Fast Attach 73 | 6 6 . 13 1 2 1 9 6 5 1 2 2 19 Attach 4 | . . . . . . . 2 . . . . . 2 Detach 1 | . . . . . . . 1 . . . . . . Swap 32 | . 2 . 7 1 6 . 6 2 . . . 4 4 Drop 85 | . 4 . 15 2 6 1 16 7 4 . 2 7 21 Fire 679 | . 57 8 135 3 32 14 100 70 48 7 . 15 190 Melee 3 | . . . . . . . . 3 . . . . . Ram 1 | . . . . 1 . . . . . . . . . Kick . | . . . . . . . . . . . . . . Crush 25 | 1 1 1 4 1 . 2 4 2 . 1 . . 8 Escape Stasis . | . . . . . . . . . . . . . . Rewire 1 | . . . . . . . . . . . . . 1 Trap . | . . . . . . . . . . . . . . Miscellaneous 373 | . 31 7 67 12 12 8 60 36 20 5 . 4 111 Route ------- -11/Scrapyard -10/Materials (discovered 5 exits: *Mat x3 / [*Min x2]) -10/Mines (discovered 2 exits: *Mat x2) -9/Materials (discovered 4 exits: *Mat x3 / *Min) -9/Mines (discovered 3 exits: *Mat x2 / *Exi) -9/Exiles -8/Mines (discovered 2 exits: *Mat x2) -8/Materials (discovered 3 exits: [*Fac x2] / *Sto) -8/Storage (discovered 3 exits: [*Fac] / Rec / Gar) -8/Garrison (discovered 3 exits: *Rec x3) -8/Recycling -6/Factory -6/Waste -6/Factory (discovered 2 exits: *Fac / *Low) History --------- Turn | Location | Event 5 | -11/Scrapyard | Upgraded with Propulsion slot (x1) 5 | -11/Scrapyard | Upgraded with Utility slot (x1) 5 | -11/Scrapyard | Upgraded with Weapon slot (x2) 10 | -11/Scrapyard | Discovered new exit (range 14) 60 | -11/Scrapyard | Entered Materials 169 | -10/Materials | Discovered new exit (range 3) 311 | -10/Materials | Build established: Gunner 500 | -10/Materials | Derelicts attacked the area 666 | -10/Materials | Reached level 2 678 | -10/Materials | Upgraded with Utility slot (x1) 678 | -10/Materials | Upgraded with Weapon slot (x1) 714 | -10/Materials | Discovered new exit (range 11) 844 | -10/Materials | Discovered new exit (range 16) 847 | -10/Materials | Discovered new exit (range 14) 1294 | -10/Materials | Discovered new exit (range 16) 1398 | -10/Materials | Entered Mines 1400 | -10/Mines | Reached level 3 1416 | -10/Mines | Learned location of 1 exit from Materials 1600 | -10/Mines | Learned Materials non-interactive machine intel 1625 | -10/Mines | Discovered new exit (range 11) 1709 | -10/Mines | Discovered new exit (range 10) 2011 | -10/Mines | Found a damaged Exp. Sensor Array with a note attached 2262 | -10/Mines | Entered Materials 2263 | -9/Materials | Identified exit to Mines 2264 | -9/Materials | Loaded intel: 60 non-interactive machine locations 2264 | -9/Materials | Reached level 4 2271 | -9/Materials | Upgraded with Utility slot (x1) 2271 | -9/Materials | Upgraded with Weapon slot (x1) 2383 | -9/Materials | Reached level 5 2437 | -9/Materials | Destroyed 7 combat bots 2815 | -9/Materials | Reached level 6 2865 | -9/Materials | Upgraded with Power slot (x1) 2865 | -9/Materials | Upgraded with Utility slot (x1) 2978 | -9/Materials | Discovered new exit (range 9) 3174 | -9/Materials | Build established: Scavenger-Gunner 3236 | -9/Materials | Reached level 7 3269 | -9/Materials | Upgraded with Weapon slot (x1) 3403 | -9/Materials | Discovered new exit (range 4) 3576 | -9/Materials | Build established: Scavenger-Executioner 3638 | -9/Materials | Reached level 8 3687 | -9/Materials | Discovered new exit (range 16) 4165 | -9/Materials | Central database locked down 4262 | -9/Materials | First assault squad dispatched 4342 | -9/Materials | Reached level 9 4367 | -9/Materials | Upgraded with Propulsion slot (x1) 4734 | -9/Materials | Sterilization system engaged 4734 | -9/Materials | Non-combat units ordered to evacuate 4771 | -9/Materials | Core integrity fell below 50% 4820 | -9/Materials | Entered Mines 4822 | -9/Mines | Assembled infested the area 4838 | -9/Mines | Received a Rocket Launcher from a helpful Derelict 4867 | -9/Mines | Met 8R-AWN 5177 | -9/Mines | Assisted by bots powering up and referring to "LRC-V3" 5229 | -9/Mines | Learned location of Storage (-8) 5229 | -9/Mines | Discovered new exit (range 13) 5389 | -9/Mines | Discovered new exit (range 16) 5441 | -9/Mines | Learned 2 Materials zone layouts 5752 | -9/Mines | Discovered new exit (range 5) 5766 | -9/Mines | Entered Exiles 5766 | -9/Exiles | Accompanied by 3 allies 5805 | -9/Exiles | Welcomed by 8R-AWN 5832 | -9/Exiles | Met EX-HEX 5924 | -9/Exiles | Met EX-DEC 5949 | -9/Exiles | Learned location of Zion (-6) 6025 | -9/Exiles | Attacked by the Exiles 6210 | -9/Exiles | Destroyed 8R-AWN 6236 | -9/Exiles | Found Prototype Device 6236 | -9/Exiles | Identified AS-neutralizer No. 17b 6450 | -9/Exiles | Discovered new exit (range 14) 6469 | -9/Exiles | Entered Mines 6471 | -8/Mines | Reached level 10 6549 | -8/Mines | Discovered new exit (range 6) 6731 | -8/Mines | Reached level 11 6808 | -8/Mines | Upgraded with Propulsion slot (x1) 7273 | -8/Mines | Discovered new exit (range 10) 7327 | -8/Mines | Entered Materials 7328 | -8/Materials | Identified exit to Storage 7404 | -8/Materials | Reached level 12 7430 | -8/Materials | Upgraded with Utility slot (x1) 7989 | -8/Materials | Reached level 13 8161 | -8/Materials | Discovered new exit (range 5) 8527 | -8/Materials | First assault squad dispatched 8737 | -8/Materials | Discovered new exit (range 5) 8969 | -8/Materials | Reached level 14 9042 | -8/Materials | Upgraded with Weapon slot (x1) 9344 | -8/Materials | Sterilization system engaged 9344 | -8/Materials | Non-combat units ordered to evacuate 9388 | -8/Materials | Destroyed 8 combat bots 9436 | -8/Materials | Entered Storage 9536 | -8/Storage | Found Prototype Launcher 9536 | -8/Storage | Identified Scatter Rocket Array 9727 | -8/Storage | Destroyed 9 combat bots 9824 | -8/Storage | Discovered new exit (range 8) 9976 | -8/Storage | Reached level 15 10042 | -8/Storage | Discovered new exit (range 15) 10107 | -8/Storage | Identified exit to Garrison 10236 | -8/Storage | First assault squad dispatched 10328 | -8/Storage | Destroyed 9 combat bots 10657 | -8/Storage | Entered Garrison 10696 | -8/Garrison | Triggered checkpoint 10739 | -8/Garrison | Garrison Relay disabled 10862 | -8/Garrison | Triggered checkpoint 10862 | -8/Garrison | Triggered checkpoint 10917 | -8/Garrison | Destroyed 7 combat bots 11020 | -8/Garrison | Triggered checkpoint 11050 | -8/Garrison | Discovered new exit (range 11) 11064 | -8/Garrison | Identified exit to Recycling 11248 | -8/Garrison | Triggered checkpoint 11322 | -8/Garrison | Triggered checkpoint 11344 | -8/Garrison | Learned Recycling security intel 11403 | -8/Garrison | Discovered exit to Recycling (range 13) 11486 | -8/Garrison | Triggered checkpoint 11594 | -8/Garrison | Discovered exit to Recycling (range 13) 11604 | -8/Garrison | Triggered checkpoint 11722 | -8/Garrison | Triggered checkpoint 11751 | -8/Garrison | Garrison Relay disabled 11766 | -8/Garrison | Triggered checkpoint 11928 | -8/Garrison | Entered Recycling 11970 | -8/Recycling | Reached level 16 11975 | -8/Recycling | Upgraded with Weapon slot (x1) 12233 | -8/Recycling | Discovered new exit (range 10) 12656 | -8/Recycling | Identified exit to Factory 12661 | -8/Recycling | Entered Factory 12663 | -6/Factory | Reached level 17 12679 | -6/Factory | Discovered new exit (range 8) 12690 | -6/Factory | Identified exit to Lower Caves 12782 | -6/Factory | Sucked down chute 12782 | -6/Factory | Entered Waste 12797 | -6/Waste | EMP discharged 12797 | -6/Waste | System corruption reached 10% 12803 | -6/Waste | Spotted C-40 Crusher 12803 | -6/Waste | Destroyed C-40 Crusher 12851 | -6/Waste | Spotted C-40 Crusher 12855 | -6/Waste | Destroyed C-40 Crusher 12865 | -6/Waste | Spotted C-40 Crusher 12873 | -6/Waste | Destroyed C-40 Crusher 12897 | -6/Waste | EMP discharged 12922 | -6/Waste | Spotted C-40 Crusher 12934 | -6/Waste | Destroyed C-40 Crusher 12962 | -6/Waste | Spotted C-40 Crusher 12966 | -6/Waste | Destroyed C-40 Crusher 12993 | -6/Waste | Spotted C-40 Crusher 12994 | -6/Waste | Destroyed C-40 Crusher 12997 | -6/Waste | EMP discharged 13062 | -6/Waste | Discovered new exit (range 11) 13077 | -6/Waste | Identified exit to Factory 13078 | -6/Waste | Entered Factory 13324 | -6/Factory | Garrison activated, responded to threat 13510 | -6/Factory | Reached level 18 13513 | -6/Factory | Upgraded with Utility slot (x1) 13705 | -6/Factory | Discovered new exit (range 11) 13775 | -6/Factory | Identified exit to Factory 14446 | -6/Factory | Fabricated Imp. Salvage Targeting Computer? 14529 | -6/Factory | Cargo convoy interrupted 14811 | -6/Factory | Found Prototype Energy Cannon 14811 | -6/Factory | Identified Exp. Thermic Cannon 14847 | -6/Factory | Spotted B-75 Beast 14858 | -6/Factory | Destroyed B-75 Beast 14866 | -6/Factory | Reached level 19 14901 | -6/Factory | Destroyed 8 combat bots 15516 | -6/Factory | Fabricated Adv. Weapon Cycler? 15528 | -6/Factory | First assault squad dispatched 15994 | -6/Factory | Discovered exit to Lower Caves (range 9) 16071 | -6/Factory | Destroyed 7 combat bots 16117 | -6/Factory | Specialist reinforcements revealed to be Infiltrators 16141 | -6/Factory | Reached level 20 16152 | -6/Factory | Upgraded with Utility slot (x1) 17886 | -6/Factory | High security lockdown imminent 17966 | -6/Factory | High security lockdown engaged 18217 | -6/Factory | Destroyed 16 combat bots 18277 | -6/Factory | Reached level 21 18314 | -6/Factory | Destroyed 13 combat bots 18436 | -6/Factory | Sterilization system engaged 18436 | -6/Factory | Non-combat units ordered to evacuate 18474 | -6/Factory | Destroyed 12 combat bots 18536 | -6/Factory | Combat units ordered to evacuate 18537 | -6/Factory | Core integrity fell below 50% 18547 | -6/Factory | Core integrity fell below 20% 18574 | -6/Factory | Destroyed by H-66 Slayer with Gauss Rifle Last Messages --------------- 18567_ Switching to secondary target: P-60 Hacker. 18567_ Slug penetrates P-60 Hacker. 18567_ HV Slug penetrates P-60 Hacker. 18567_ HV Slug penetrates Wall. 18567_ HV Slug penetrates P-60 Hacker. 18567_ HV Slug penetrates Wall. 18568_ Acquired 34 matter. 18569_ Slug penetrates Wall. 18569_ Penetrated by Slug. 18571_ System corrupted: Gauss Rifle jammed. 18571_ Slug penetrates G-50 Soldier. 18571_ HV Slug penetrates G-50 Soldier. 18571_ HV Slug penetrates H-66 Slayer. 18571_ H-66 Slayer suffers critical hit (Destroy). 18571_ Destroyed Flexi-carbon Leg. 18571_ H-66 Slayer suffers critical hit (Destroy). 18571_ H-66 Slayer destroyed. 18571_ HV Slug penetrates G-50 Soldier. 18572_ Acquired 30 matter. 18573_ Penetrated by Slug. Map ----- +----------------------------------------------------+ | ?? ????????" ""??# =[###### | | ??###????????? ""??# #### ######## =*#????? | | ???????????????"""?# ####+#"########%#????? | | ???????????????? # # ##!#????? | | ????????????????? # # """ """!"" ##%#????? | | ?????????????????? + + """ """ F" ##*#????? | | ???????#######?????# #i""" """! " ##%#????? | | ???????# ####### # "" ##%#????? | | ???????# e# """ """ ##%#????? | | ???????+ g# """ """ ##!#????? | | ???????# # """ """ = ##%###### | | ???????# ######## ## ##[# # | | ???????# ########+## ! ##=#"" # | | ???????# #] ##C ##%#"" # | | ???????# # ] "" ## hi ] ##%#"" # | | ???????# # T"!###C############]#T # | | ???????# # ""!###%#??????????#!#"" # | | ???????+ / !!! =[%##%#??????????#=#"" # | | ???????# # !!! *###l#???????####%#"" # | | ???????# p# !!! #?#*#???????#[ %*!=*% " | | ???????# # ! #?#%#???????#!%""###### | | ???????# # ###%#??????##!###![! # | | ???????# ###########h/########=%##!*!= # | | ???????# # =![*phg[[%![#/[*%=#*/ # | | ???????# e =*=%%==*[*!#*[=![#! # | | ???????# # !=!=@!=!* %%==%%[[! # | | ???????# # !=!!*[= [!#[!%!=#* # | | ???????# # =[=*[ /!#!==%!# # | | ?????? # ! ###%######### | | ???? # #?#=# ?? | | ?? # #?# # """" !? | | ? ############*###;###?# # """" # | | ? ############=#?####### # """" # | | ?############# ##^#?# + """" # | | ?????????????# ! ##%#?# ##### # """" # | | ?????????????# ##%### ????# # """" ]# | | ?????????????# ##= ?????# # # | | ?????????????# ##! ??????# ########? | | ?????????????# ## ##+#####+##??????? | | ?????????????# + + #??????? | | ?????????????# # # #??????? | | ##################+##### # """ """ #??????? | | * ! # """ """ #??????? | | = !# """ """ #??????? | | # #??????? | | + = #??????? | | # ! #??????? | | ####+#############+### ############?????? | | ??# ## # #?#]??? [#?????? | | ??# ## # #?# """ #?????? | +----------------------------------------------------+ Best States ------------- Heat Dissipation 93 Coolant Potential 50 Energy Generation 37 Energy Capacity 550 Matter Stores 400 Matter Capacity 400 Sight Range 18 Robot Scan Range 20 Terrain Scan Density 10 Resistance: KI 10 Weapon Cycling 25 Evasion (%) 50 Targeting Accuracy 8 Core Analysis 6 Recoil Reduction 4 Salvage Targeting 2 Offensive Hacking 10 Item Schematics ----------------- Salvage Targeting Computer | -8/Materials | Scanalyzed Hacking Suite | -8/Recycling | Hacked Imp. Salvage Targeting Computer | -8/Recycling | Hacked Armor Integrity Analyzer | -8/Recycling | Hacked Adv. Weapon Cycler | -6/Factory | Scanalyzed Robot Schematics ------------------ None Fabricated ------------ Imp. Salvage Targeting Computer | x2 | -6/Factory Adv. Weapon Cycler | x2 | -6/Factory Alien Tech Used ----------------- None Achievements -------------- None Challenges ------------ None RPGLIKE | -11 -10 -10 -9 -9 -9 -8 -8 -8 -8 -8 -6 -6 -6 --------- Run | Yrd Mat Min Mat Min Exi Min Mat Sto Gar Rec Fac Was Fac Levels Raised 20 | . 1 1 6 . . 2 3 1 . 1 1 . 4 XP Earned 33733 | 3000 2675 1100 9053 433 97 1996 4609 1416 924 302 1500 139 6489 XP Spent 31945 | 2550 1900 500 8650 1250 . 2100 5325 120 330 2300 320 . 6600 Upgrades 55 | 5 2 1 8 1 . 4 12 2 3 1 2 . 14 Power Slot 1 | . . . 1 . . . . . . . . . . Propulsion Slot 3 | 1 . . 1 . . 1 . . . . . . . Utility Slot 7 | 1 1 . 2 . . . 1 . . . . . 2 Weapon Slot 7 | 2 1 . 2 . . . 1 . . 1 . . . Core Integrity 6 | . . . . . . . . . . . . . 6 Heat Dissipation 7 | . . . . . . . . 2 3 . 2 . . Inventory Capacity 5 | 1 . 1 2 1 . . . . . . . . . Sight Range 2 | . . . . . . . . . . . . . 2 Sensor Range 10 | . . . . . . . 10 . . . . . . Ranged Accuracy 3 | . . . . . . 1 . . . . . . 2 Hack Attack % 2 | . . . . . . 2 . . . . . . . KI Resistance % 2 | . . . . . . . . . . . . . 2 Protomatter Created 6961 | . 353 95 836 94 7 62 925 921 380 95 . 175 3018 Integrity Restored 7018 | . 519 118 1248 260 273 153 1086 681 375 77 . 71 2157 Core 5065 | . 409 102 882 142 273 153 654 480 248 33 . . 1689 Parts 1953 | . 110 16 366 118 . . 432 201 127 44 . 71 468 Protomatter Decayed 2551 | . 159 23 259 17 22 11 369 579 159 67 . 85 801 Game ------ Seed AerolevCooledFemtoactuators Manual? 0 Play Time 01:44:23 Cumulative 1882.3 hours Start 2024.01.21 @ 16:34:44 End 2024.01.21 @ 19:31:07 Sessions 1 Manual Loads 0 Difficulty Rogue Special Mode Winter2019/RPGLIKE Game No. 659 Rogue 659 Adventurer 0 Explorer 0 Win Type - Total 147 Types 29/13/65/7/1/2/28/1/1 Lore% 96 Gallery% 96 Achievement% 88 Wizard Run 0 Options --------- ASCII 0 Keyboard 0 Movement Numpad Keybinds 0 Fullscreen 2 Font 18/SmallcapsGlow Map View 76x50 Zoom Use 0% Tactical HUD 1 Map Filters NONE Filters NONE Steam 1 RUN: 8e6ade67-cd4b-4c32-b513-59dae1050e53